fUSD/lending_fUSD_20240616
["ID","MTS","AMOUNT","RATE_DAILY","PERIOD"]
[329636037,1718519505067,-500.0,0.00023835,3]
[329636038,1718519505098,-923.48,0.00023835,3]
[329636039,1718519505121,-565.58,0.00023835,3]
[329636040,1718519505134,-16140.01,0.00023835,3]
[329636041,1718519505193,-500.0,0.00023835,3]
[329636042,1718519505227,-867.54,0.00023835,3]
[329636043,1718519505241,-500.0,0.00023835,3]
[329636044,1718519505257,-720.86,0.00023835,3]
[329636045,1718519505280,-500.0,0.00023835,3]
[329636046,1718519505308,-1400.95,0.00023835,3]
[329636047,1718519505340,-883.04,0.00023835,3]
[329636048,1718519505369,-788.31,0.00023835,3]
[329636049,1718519505382,-614.72,0.00023835,3]
[329636050,1718519505394,-1333.44,0.00023835,3]
[329636051,1718519505448,-636.64,0.00023835,3]
[329636052,1718519505461,-1108.65,0.00023835,3]
[329636053,1718519505472,-1571.99,0.00023835,3]
[329636054,1718519505488,-1584.23,0.00023835,3]
[329636055,1718519505501,-4835.69,0.00023835,3]
[329636056,1718519505513,-500.0,0.00023835,3]
[329636057,1718519505525,-675.02,0.00023835,3]
[329636058,1718519505537,-1506.09,0.00023835,3]
[329636059,1718519505564,-547.67,0.00023835,3]
[329636060,1718519505586,-500.0,0.00023835,3]
[329636061,1718519505603,-500.0,0.00023835,3]
[329636062,1718519505628,-2665.25,0.00023835,3]
[329636063,1718519505669,-500.0,0.00023835,3]
[329636064,1718519505693,-500.58,0.00023835,3]
[329636065,1718519505706,-768.07,0.00023835,3]
[329636066,1718519505729,-2906.49,0.00023835,3]
[329636067,1718519505745,-551.95,0.00023835,3]
[329636068,1718519505768,-1245.63,0.00023835,3]
[329636069,1718519505798,-500.0,0.00023835,3]
[329636070,1718519505811,-679.0,0.00023835,3]
[329636071,1718519505836,-500.0,0.00023835,3]
[329636072,1718519505856,-954.41,0.00023835,3]
[329636073,1718519505876,-500.0,0.00023835,3]
[329636074,1718519505897,-500.0,0.00023835,3]
[329636075,1718519505910,-500.0,0.00023835,3]
[329636076,1718519505937,-998.69,0.00023835,3]
[329636077,1718519505954,-500.0,0.00023835,3]
[329636078,1718519505987,-500.0,0.00023835,3]
[329636079,1718519505999,-526.53,0.00023835,3]
[329636080,1718519506015,-500.0,0.00023835,3]
[329636081,1718519506027,-574.1,0.00023835,3]
[329636082,1718519506047,-500.0,0.00023835,3]
[329636083,1718519506075,-1602.8,0.00023835,3]
[329636084,1718519506110,-500.0,0.00023835,3]
[329636085,1718519506148,-500.0,0.00023835,3]
[329636086,1718519506161,-1254.36,0.00023835,3]
[329636087,1718519506175,-1766.79,0.00023835,3]
[329636088,1718519506195,-622.71,0.00023835,3]
[329636089,1718519506206,-500.0,0.00023835,3]
[329636090,1718519506228,-1978.99,0.00023835,3]
[329636091,1718519506242,-1271.11,0.00023835,3]
[329636092,1718519506258,-897.11,0.00023835,3]
[329636093,1718519506279,-673.16,0.00023835,3]
[329636094,1718519506306,-1458.59,0.00023835,3]
[329636095,1718519506321,-500.0,0.00023835,3]
[329636096,1718519506337,-500.0,0.00023835,3]
[329636097,1718519506353,-500.0,0.00023835,3]
[329636098,1718519506370,-503.26,0.00023835,3]
[329636099,1718519506391,-1882.15,0.00023835,3]
[329636100,1718519506408,-900.94,0.00023835,3]
[329636101,1718519506421,-6355.77,0.00023835,3]
[329636102,1718519506433,-797.28,0.00023835,3]
[329636103,1718519506445,-500.0,0.00023835,3]
[329636104,1718519506469,-500.0,0.00023835,3]
[329636105,1718519506497,-500.0,0.00023835,3]
[329636106,1718519506523,-774.66,0.00023835,3]
[329636107,1718519506549,-749.71,0.00023835,3]
[329636108,1718519506563,-564.43,0.00023835,3]
[329636109,1718519506580,-500.0,0.00023835,3]
[329636110,1718519506598,-1539.73,0.00023835,3]
[329636111,1718519506631,-500.0,0.00023835,3]
[329636112,1718519506647,-500.0,0.00023835,3]
[329636113,1718519506660,-3132.14,0.00023835,3]
[329636114,1718519506676,-500.0,0.00023835,3]
[329636115,1718519506690,-500.0,0.00023835,3]
[329636116,1718519506713,-604.6117431,0.00023835,3]
[329636117,1718519506733,-500.0,0.00023835,3]
[329636118,1718519506748,-1719.13,0.00023835,3]
[329636119,1718519506800,-500.0,0.00023835,3]
[329636120,1718519506835,-500.0,0.00023835,3]
[329636121,1718519506893,-500.0,0.00023835,3]
[329636122,1718519506908,-877.15,0.00023835,3]
[329636123,1718519506941,-638.19,0.00023835,3]
[329636124,1718519506965,-500.0,0.00023835,3]
[329636125,1718519506976,-507.88,0.00023835,3]
[329636126,1718519506990,-1256.01,0.00023835,3]
[329636127,1718519507003,-1319.04,0.00023835,3]
[329636128,1718519507015,-831.44,0.00023835,3]
[329636129,1718519507027,-1880.82,0.00023835,3]
[329636130,1718519507040,-889.01,0.00023835,3]
[329636131,1718519507052,-500.0,0.00023835,3]
[329636132,1718519507068,-839.73,0.00023835,3]
[329636133,1718519507083,-1019.43,0.00023835,3]
[329636134,1718519507098,-586.87493296,0.00023835,3]
[329636135,1718519507114,-876.34,0.00023835,3]
[329636136,1718519507136,-1263.54,0.00023835,3]
[329636137,1718519507168,-1051.98,0.00023835,3]
[329636138,1718519507198,-500.0,0.00023835,3]
[329636139,1718519507232,-868.27,0.00023835,3]
[329636140,1718519507247,-500.0,0.00023835,3]
[329636141,1718519507283,-500.0,0.00023835,3]
[329636142,1718519507303,-1623.39,0.00023835,3]
[329636143,1718519507332,-970.73,0.00023835,3]
[329636144,1718519507372,-898.14,0.00023835,3]
[329636145,1718519507393,-500.0,0.00023835,3]
[329636146,1718519507412,-826.07,0.00023835,3]
[329636147,1718519507429,-500.0,0.00023835,3]
[329636148,1718519507455,-882.22,0.00023835,3]
[329636149,1718519507482,-854.76,0.00023835,3]
[329636150,1718519507497,-1419.04,0.00023835,3]
[329636151,1718519507508,-1666.34,0.00023835,3]
[329636152,1718519507521,-938.36,0.00023835,3]
[329636153,1718519507535,-535.88,0.00023835,3]
[329636154,1718519507554,-771.1,0.00023835,3]
[329636155,1718519507588,-500.0,0.00023835,3]
[329636156,1718519507602,-546.14,0.00023835,3]
[329636157,1718519507620,-500.0,0.00023835,3]
[329636158,1718519507654,-637.63,0.00023835,3]
[329636159,1718519507704,-500.0,0.00023835,3]
[329636160,1718519507720,-534.11,0.00023835,3]
[329636161,1718519507735,-500.0,0.00023835,3]
[329636162,1718519507748,-1079.11,0.00023835,3]
[329636163,1718519507761,-990.93,0.00023835,3]
[329636164,1718519507774,-500.0,0.00023835,3]
[329636165,1718519507786,-733.88,0.00023835,3]
[329636166,1718519507805,-500.0,0.00023835,3]
[329636167,1718519507835,-500.0,0.00023835,3]
[329636168,1718519507845,-500.0,0.00023835,3]
[329636169,1718519507856,-592.82,0.00023835,3]
[329636170,1718519507870,-500.0,0.00023835,3]
[329636171,1718519507894,-2735.16,0.00023835,3]
[329636172,1718519507904,-599.16,0.00023835,3]
[329636173,1718519507915,-631.36,0.00023835,3]
[329636174,1718519507927,-505.74,0.00023835,3]
[329636175,1718519507940,-609.47,0.00023835,3]
[329636176,1718519507958,-707.73,0.00023835,3]
[329636177,1718519507995,-500.0,0.00023835,3]
[329636178,1718519508023,-160.02955024,0.00023838,2]
[329636179,1718519508056,-150.0,0.00023852,2]
[329636180,1718519508068,-166.66666666,0.00023863,2]
[329636181,1718519508084,-308.99966582,0.00023873,2]
[329636182,1718519508141,-419.60799944,0.00023877,2]
[329636183,1718519508171,-716.5,0.00023892,2]
[329636184,1718519508190,-668.41653961,0.00023901,2]
[329636185,1718519508224,-2195.64,0.00023924,2]
[329636186,1718519508243,-158.43959001,0.00023935,2]
[329636187,1718519508266,-308.99966582,0.0002394,2]
[329636188,1718519508287,-851.88,0.00023945,2]
[329636189,1718519508302,-417.93,0.00023945,2]
[329636190,1718519508318,-417.93,0.00023945,2]
[329636191,1718519508345,-417.93,0.00023945,2]
[329636192,1718519508356,-851.88,0.00023945,2]
[329636193,1718519508366,-416.08,0.00023945,2]
[329636194,1718519508379,-851.88,0.00023945,2]
[329636195,1718519508410,-1048.61,0.00023945,2]
[329636196,1718519508427,-7950.93979624,0.00023945,2]
[329636197,1718519508441,-160.02955024,0.00023973,2]
[329636198,1718519508457,-152.19673152,0.00023982,2]
[329636199,1718519508470,-419.60799944,0.00023984,2]
[329636200,1718519508481,-419.60799944,0.00023986,2]
[329636201,1718519508494,-154.01467209,0.00023996,2]
[329636202,1718519508505,-312.1684747,0.00024,10]
[329636203,1718519508524,-151.39328889,0.00024,2]
[329636204,1718519508549,-6000.0,0.00024,2]
[329636205,1718519508561,-1026.0,0.00024,2]
[329636206,1718519508584,-150.0,0.00024002,2]
[329636207,1718519508597,-5000.0,0.00024012,2]
[329636208,1718519508610,-419.60799944,0.00024013,2]
[329636209,1718519508630,-500.0,0.00024021,2]
[329636210,1718519508643,-500.0,0.0002403,2]
[329636211,1718519508660,-500.0,0.00024038,2]
[329636212,1718519508679,-150.0,0.0002404,2]
[329636213,1718519508692,-500.0,0.00024047,2]
[329636214,1718519508714,-5000.0,0.00024054,2]
[329636215,1718519508731,-500.0,0.00024056,2]
[329636216,1718519508744,-154.84917017,0.00024057,2]
[329636217,1718519508763,-500.0,0.00024065,2]
[329636218,1718519508778,-572.85988994,0.00024072,2]
[329636219,1718519508801,-500.0,0.00024074,2]
[329636220,1718519508826,-150.0,0.00024078,2]
[329636221,1718519508836,-500.0,0.00024082,2]
[329636222,1718519508863,-500.0,0.00024085,2]
[329636223,1718519508876,-150.0,0.00024089,2]
[329636224,1718519508893,-500.0,0.00024091,2]
[329636225,1718519508917,-500.0,0.00024094,2]
[329636226,1718519508940,-150.0,0.00024094,2]
[329636227,1718519508952,-2059.47906552,0.000241,2]
[329636228,1718519508985,-500.0,0.000241,2]
[329636229,1718519508998,-332.87320564,0.000241,2]
[329636230,1718519509014,-1862.47,0.000241,2]
[329636231,1718519509035,-160.0,0.000241,2]
[329636232,1718519509049,-500.0,0.000241,2]
[329636233,1718519509080,-500.0,0.000241,2]
[329636234,1718519509095,-160.0,0.000241,2]
[329636235,1718519509117,-2543.2092225,0.00024109,2]
[329636236,1718519509128,-1365.94686395,0.00024109,2]
[329636237,1718519509150,-255.56994542,0.00024109,2]
[329636238,1718519509170,-500.0,0.00024109,3]
[329636239,1718519509182,-500.0,0.00024109,3]
[329636240,1718519509220,-500.0,0.00024109,3]
[329636241,1718519509236,-500.0,0.00024109,3]
[329636242,1718519509275,-500.0,0.00024109,3]
[329636243,1718519509290,-500.0,0.00024109,3]
[329636244,1718519509312,-500.0,0.00024109,3]
[329636245,1718519509329,-500.0,0.00024109,3]
[329636246,1718519509343,-500.0,0.00024109,3]
[329636247,1718519509358,-500.0,0.00024109,3]
[329636248,1718519509373,-500.0,0.00024109,3]
[329636249,1718519509385,-519.58,0.00024109,3]
[329636250,1718519509412,-500.0,0.00024109,3]
[329636251,1718519509429,-500.0,0.00024109,3]
[329636252,1718519509444,-500.0,0.00024109,3]
[329636253,1718519509455,-500.0,0.00024109,3]
[329636254,1718519509468,-476.12681997,0.00024109,3]
[329636255,1718519509507,-500.0,0.00024109,3]
[329636256,1718519509540,-500.0,0.00024109,3]
[329636257,1718519509559,-500.0,0.00024109,3]
[329636258,1718519509574,-500.0,0.00024109,3]
[329636259,1718519509587,-500.0,0.00024109,3]
[329636260,1718519509599,-500.0,0.00024109,3]
[329636262,1718519509610,-500.0,0.00024109,3]
[329636263,1718519509620,-521.4,0.00024109,3]
[329636264,1718519509632,-500.0,0.00024109,3]
[329636265,1718519509665,-500.0,0.00024109,3]
[329636266,1718519509705,-373.73692876,0.00024109,3]
[329636267,1718519509717,-881.45,0.00024109,3]
[329636268,1718519509728,-500.0,0.00024109,3]
[329636269,1718519509745,-500.0,0.00024109,3]
[329636270,1718519509773,-500.0,0.00024109,3]
[329636271,1718519509790,-500.0,0.00024109,3]
[329636272,1718519509804,-500.0,0.00024109,3]
[329636273,1718519509832,-500.0,0.00024109,3]
[329636274,1718519509847,-517.49,0.00024109,3]
[329636275,1718519509861,-500.0,0.00024109,3]
[329636276,1718519509875,-517.12,0.00024109,3]
[329636277,1718519509891,-500.0,0.00024109,3]
[329636278,1718519509914,-500.0,0.00024109,3]
[329636279,1718519509933,-500.0,0.00024109,3]
[329636280,1718519509944,-500.0,0.00024109,3]
[329636281,1718519509965,-500.0,0.00024109,3]
[329636282,1718519509983,-500.0,0.00024109,3]
[329636283,1718519509994,-500.0,0.00024109,3]
[329636284,1718519510005,-500.0,0.00024109,3]
[329636285,1718519510016,-558.88,0.00024109,3]
[329636286,1718519510028,-500.0,0.00024109,3]
[329636287,1718519510043,-695.39,0.00024109,3]
[329636288,1718519510058,-500.0,0.00024109,3]
[329636289,1718519510068,-500.0,0.00024109,3]
[329636290,1718519510109,-500.0,0.00024109,3]
[329636291,1718519510120,-518.8,0.00024109,3]
[329636292,1718519510156,-500.0,0.00024109,3]
[329636293,1718519510174,-500.0,0.00024109,3]
[329636294,1718519510198,-500.0,0.00024109,3]
[329636295,1718519510213,-500.0,0.00024109,3]
[329636296,1718519510240,-579.83,0.00024109,3]
[329636297,1718519510267,-500.0,0.00024109,3]
[329636298,1718519510281,-500.0,0.00024109,3]
[329636299,1718519510316,-500.0,0.00024109,3]
[329636300,1718519510476,-500.0,0.00024109,3]
[329636301,1718519510498,-500.0,0.00024109,3]
[329636302,1718519510511,-665.03,0.00024109,3]
[329636303,1718519510524,-500.0,0.00024109,3]
[329636304,1718519510548,-500.0,0.00024109,3]
[329636305,1718519510560,-500.0,0.00024109,3]
[329636306,1718519510580,-500.0,0.00024109,3]
[329636307,1718519510603,-648.00263825,0.00024109,3]
[329636308,1718519510648,-500.0,0.00024109,3]
[329636309,1718519510667,-500.0,0.00024109,3]
[329636310,1718519510680,-538.51,0.00024109,3]
[329636311,1718519510693,-500.0,0.00024109,3]
[329636312,1718519510717,-577.03,0.00024109,3]
[329636313,1718519510729,-500.0,0.00024109,3]
[329636314,1718519510740,-500.0,0.00024109,3]
[329636315,1718519510767,-488.01767564,0.00024109,3]
[329636316,1718519510828,-618.93,0.00024109,3]
[329636317,1718519510852,-500.0,0.00024109,3]
[329636318,1718519510871,-689.97,0.00024109,3]
[329636319,1718519510884,-500.0,0.00024109,3]
[329636320,1718519510907,-500.0,0.00024109,3]
[329636321,1718519510940,-500.0,0.00024109,3]
[329636322,1718519510966,-500.0,0.00024109,3]
[329636323,1718519510985,-500.0,0.00024109,3]
[329636324,1718519511013,-732.2,0.00024109,3]
[329636325,1718519511038,-500.0,0.00024109,3]
[329636326,1718519511055,-500.0,0.00024109,3]
[329636327,1718519511086,-500.0,0.00024109,3]
[329636328,1718519511119,-500.0,0.00024109,3]
[329636329,1718519511132,-528.47,0.00024109,3]
[329636330,1718519511153,-500.0,0.00024109,3]
[329636331,1718519511165,-393.45383818,0.00024109,3]
[329636332,1718519511201,-500.0,0.00024109,3]
[329636333,1718519511223,-523.56,0.00024109,3]
[329636334,1718519511235,-500.0,0.00024109,3]
[329636335,1718519511246,-500.0,0.00024109,3]
[329636336,1718519511260,-784.49,0.00024109,3]
[329636337,1718519511289,-399.69592813,0.00024109,3]
[329636338,1718519511309,-500.0,0.00024109,3]
[329636339,1718519511321,-500.0,0.00024109,3]
[329636340,1718519511352,-500.0,0.00024109,3]
[329636341,1718519511363,-500.0,0.00024109,3]
[329636342,1718519511374,-500.0,0.00024109,3]
[329636343,1718519511389,-1409.82,0.00024109,3]
[329636344,1718519511401,-628.68,0.00024109,3]
[329636345,1718519511412,-208.85,0.00024109,3]
[329636346,1718519511437,-500.0,0.00024109,3]
[329636347,1718519511454,-500.0,0.00024109,3]
[329636348,1718519511467,-500.0,0.00024109,3]
[329636349,1718519511478,-500.0,0.00024109,3]
[329636350,1718519511490,-190.93689074,0.00024109,3]
[329636351,1718519511503,-644.15,0.00024109,3]
[329636352,1718519511524,-500.0,0.00024109,3]
[329636353,1718519511544,-500.0,0.00024109,3]
[329636354,1718519511561,-1318.25,0.00024109,3]
[329636355,1718519511578,-500.0,0.00024109,3]
[329636356,1718519511593,-500.0,0.00024109,3]
[329636357,1718519511606,-500.0,0.00024109,3]
[329636358,1718519511617,-315.38928931,0.00024109,3]
[329636359,1718519511629,-500.0,0.00024109,3]
[329636360,1718519511639,-500.0,0.00024109,3]
[329636361,1718519511652,-827.33,0.00024109,3]
[329636362,1718519511666,-526.71,0.00024109,3]
[329636363,1718519511678,-500.0,0.00024109,3]
[329636364,1718519511690,-345.86223066,0.00024109,3]
[329636365,1718519511703,-500.0,0.00024109,3]
[329636366,1718519511721,-500.0,0.00024109,3]
[329636367,1718519511739,-500.0,0.00024109,3]
[329636368,1718519511751,-500.0,0.00024109,3]
[329636369,1718519511797,-500.0,0.00024109,3]
[329636370,1718519511813,-500.0,0.00024109,3]
[329636371,1718519511825,-500.0,0.00024109,3]
[329636372,1718519511838,-666.89,0.00024109,3]
[329636373,1718519511857,-528.0,0.00024109,3]
[329636374,1718519511893,-500.0,0.00024109,3]
[329636375,1718519511925,-500.0,0.00024109,3]
[329636376,1718519511959,-572.8,0.00024109,3]
[329636377,1718519511976,-6771.39,0.00024109,3]
[329636378,1718519511996,-2751.09,0.00024109,3]
[329636379,1718519512021,-500.0,0.00024109,3]
[329636380,1718519512033,-556.12,0.00024109,3]
[329636381,1718519512068,-500.0,0.00024109,3]
[329636382,1718519512107,-500.318703,0.00024109,3]
[329636383,1718519512120,-500.0,0.00024109,3]
[329636384,1718519512153,-500.318703,0.00024109,3]
[329636385,1718519512181,-4111.44,0.00024109,3]
[329636386,1718519512199,-500.0,0.00024109,3]
[329636387,1718519512218,-517.38,0.00024109,3]
[329636388,1718519512231,-500.0,0.00024109,3]
[329636389,1718519512251,-1089.23,0.00024109,3]
[329636390,1718519512269,-500.0,0.00024109,3]
[329636391,1718519512299,-752.44,0.00024109,3]
[329636392,1718519512334,-732.83,0.00024109,3]
[329636393,1718519512355,-500.0,0.00024109,3]
[329636394,1718519512377,-500.0,0.00024109,3]
[329636395,1718519512402,-598.68,0.00024109,3]
[329636396,1718519512460,-16567.34,0.00024109,3]
[329636397,1718519512497,-500.0,0.00024109,3]
[329636398,1718519512538,-5825.82,0.00024109,3]
[329636399,1718519512569,-896.52,0.00024109,3]
[329636400,1718519512586,-500.0,0.00024109,3]
[329636401,1718519512618,-923.48,0.00024109,3]
[329636402,1718519512643,-565.58,0.00024109,3]
[329636403,1718519512669,-6702.90912661,0.00024109,3]
[329636404,1718519512930,-360.75500002,0.00024109,3]
[329636405,1718519513066,-169.439,0.00022395,2]
[329636406,1718519513092,-500.0,0.00022465,3]
[329636407,1718519513109,-598.47,0.00023561,3]
[329636408,1718519513135,-537.61,0.00023561,3]
[329636409,1718519513191,-598.47,0.00023835,3]
[329636410,1718519513211,-2334.4501021,0.00024109,3]
[329636411,1718519513243,-1555.73494035,0.00024109,3]
[329636412,1718519513259,-5186.16083092,0.00024109,3]
[329636413,1718519513270,-500.0,0.00024109,3]
[329636414,1718519513308,-867.54,0.00024109,3]
[329636415,1718519513326,-500.0,0.00024109,3]
[329636416,1718519513349,-720.86,0.00024109,3]
[329636417,1718519513369,-500.0,0.00024109,3]
[329636418,1718519513396,-1400.95,0.00024109,3]
[329636419,1718519513407,-883.04,0.00024109,3]
[329636420,1718519513418,-788.31,0.00024109,3]
[329636421,1718519513436,-614.72,0.00024109,3]
[329636422,1718519513453,-1333.44,0.00024109,3]
[329636423,1718519513467,-636.64,0.00024109,3]
[329636424,1718519513482,-1108.65,0.00024109,3]
[329636425,1718519513499,-1571.99,0.00024109,3]
[329636426,1718519513518,-1584.23,0.00024109,3]
[329636427,1718519513561,-4835.69,0.00024109,3]
[329636428,1718519513600,-500.0,0.00024109,3]
[329636429,1718519513617,-675.02,0.00024109,3]
[329636430,1718519513631,-1506.09,0.00024109,3]
[329636431,1718519513643,-547.67,0.00024109,3]
[329636432,1718519513658,-500.0,0.00024109,3]
[329636433,1718519513673,-500.0,0.00024109,3]
[329636434,1718519513688,-92.33725577,0.00024109,3]
[329636435,1718519513924,-2572.91274423,0.00024109,3]
[329636436,1718519513942,-500.0,0.00024109,3]
[329636437,1718519513956,-500.58,0.00024109,3]
[329636438,1718519513978,-768.07,0.00024109,3]
[329636439,1718519513999,-2906.49,0.00024109,3]
[329636440,1718519514014,-551.95,0.00024109,3]
[329636441,1718519514042,-1245.63,0.00024109,3]
[329636442,1718519514056,-679.0,0.00024109,3]
[329636443,1718519514071,-226.79184506,0.00024109,3]
[329636444,1718519514103,-500.0,0.00024109,3]
[329636445,1718519514148,-954.41,0.00024109,3]
[329636446,1718519514199,-424.49502627,0.00024109,3]
[329636447,1718519514475,535.32629085,0.0001,2]
[329636448,1718519514579,-500.0,0.00021917,2]
[329636449,1718519514652,-500.0,0.00022191,3]
[329636450,1718519514681,-500.0,0.00022465,3]
[329636451,1718519514698,-500.0,0.00022739,3]
[329636452,1718519514713,-500.0,0.00023013,3]
[329636453,1718519514739,-500.0,0.00023287,3]
[329636454,1718519514776,-537.61,0.00023835,3]
[329636455,1718519514808,-150.42653487,0.00024109,3]
[329636456,1718519515103,-500.0,0.00024109,3]
[329636457,1718519515176,-365.51950736,0.00024109,3]
[329636458,1718519515311,-134.48049264,0.00024109,3]
[329636459,1718519515326,-998.69,0.00024109,3]
[329636460,1718519515341,-500.0,0.00024109,3]
[329636461,1718519515370,-526.53,0.00024109,3]
[329636462,1718519515394,-500.0,0.00024109,3]
[329636463,1718519515414,-500.0,0.00024109,3]
[329636464,1718519515440,-574.1,0.00024109,3]
[329636465,1718519515458,-500.0,0.00024109,3]
[329636466,1718519515471,-1602.8,0.00024109,3]
[329636467,1718519515498,-500.0,0.00024109,3]
[329636468,1718519515513,-413.11473001,0.00024109,3]
[329636469,1718519515527,-1254.36,0.00024109,3]
[329636470,1718519515579,-1766.79,0.00024109,3]
[329636471,1718519515603,-622.71,0.00024109,3]
[329636472,1718519515625,-500.0,0.00024109,3]
[329636473,1718519515639,-1978.99,0.00024109,3]
[329636474,1718519515668,-1271.11,0.00024109,3]
[329636475,1718519515690,-897.11,0.00024109,3]
[329636476,1718519515709,-673.16,0.00024109,3]
[329636477,1718519515730,-1458.59,0.00024109,3]
[329636478,1718519515743,-500.0,0.00024109,3]
[329636479,1718519515768,-500.0,0.00024109,3]
[329636480,1718519515804,-500.0,0.00024109,3]
[329636481,1718519515816,-503.26,0.00024109,3]
[329636482,1718519515845,-1882.15,0.00024109,3]
[329636483,1718519515859,-900.94,0.00024109,3]
[329636484,1718519515886,-6355.77,0.00024109,3]
[329636485,1718519515906,-797.28,0.00024109,3]
[329636486,1718519515927,-500.0,0.00024109,3]
[329636487,1718519515956,-500.0,0.00024109,3]
[329636488,1718519515978,-500.0,0.00024109,3]
[329636489,1718519515995,-774.66,0.00024109,3]
[329636490,1718519516011,-749.71,0.00024109,3]
[329636491,1718519516044,-564.43,0.00024109,3]
[329636492,1718519516056,-500.0,0.00024109,3]
[329636493,1718519516076,-1539.73,0.00024109,3]
[329636494,1718519516087,-500.0,0.00024109,3]
[329636495,1718519516140,-500.0,0.00024109,3]
[329636496,1718519516162,-3132.14,0.00024109,3]
[329636497,1718519516175,-500.0,0.00024109,3]
[329636498,1718519516201,-500.0,0.00024109,3]
[329636499,1718519516214,-500.0,0.00024109,3]
[329636500,1718519516230,-1719.13,0.00024109,3]
[329636501,1718519516249,-500.0,0.00024109,3]
[329636502,1718519516262,-500.0,0.00024109,3]
[329636503,1718519516286,-500.0,0.00024109,3]
[329636504,1718519516299,-877.15,0.00024109,3]
[329636505,1718519516317,-638.19,0.00024109,3]
[329636506,1718519516335,-500.0,0.00024109,3]
[329636507,1718519516346,-507.88,0.00024109,3]
[329636508,1718519516357,-1256.01,0.00024109,3]
[329636509,1718519516368,-1319.04,0.00024109,3]
[329636510,1718519516378,-831.44,0.00024109,3]
[329636511,1718519516390,-1880.82,0.00024109,3]
[329636512,1718519516414,-889.01,0.00024109,3]
[329636513,1718519516426,-500.0,0.00024109,3]
[329636514,1718519516437,-839.73,0.00024109,3]
[329636515,1718519516452,-1019.43,0.00024109,3]
[329636516,1718519516465,-876.34,0.00024109,3]
[329636517,1718519516478,-1263.54,0.00024109,3]
[329636518,1718519516491,-1051.98,0.00024109,3]
[329636519,1718519516502,-500.0,0.00024109,3]
[329636520,1718519516513,-868.27,0.00024109,3]
[329636521,1718519516535,-500.0,0.00024109,3]
[329636522,1718519516549,-500.0,0.00024109,3]
[329636523,1718519516574,-1623.39,0.00024109,3]
[329636524,1718519516587,-970.73,0.00024109,3]
[329636525,1718519516600,-898.14,0.00024109,3]
[329636526,1718519516611,-500.0,0.00024109,3]
[329636527,1718519516625,-826.07,0.00024109,3]
[329636528,1718519516638,-500.0,0.00024109,3]
[329636529,1718519516662,-882.22,0.00024109,3]
[329636530,1718519516688,-854.76,0.00024109,3]
[329636531,1718519516699,-1419.04,0.00024109,3]
[329636532,1718519516724,-1666.34,0.00024109,3]
[329636533,1718519516753,-938.36,0.00024109,3]
[329636534,1718519516766,-535.88,0.00024109,3]
[329636535,1718519516777,-771.1,0.00024109,3]
[329636536,1718519516790,-500.0,0.00024109,3]
[329636537,1718519516813,-546.14,0.00024109,3]